bitfinex/quotes_SOLUSD_20250721
["timestamp","ask_amount","ask_price","bid_price","bid_amount"]
[1753125903679,0.71,195.18,195.17,0.03]
[1753125903876,7.31814556,195.18,195.17,0.03]
[1753125904480,12.44162132,195.18,195.17,0.03]
[1753125905188,6.60814556,195.18,195.17,0.03]
[1753125906080,7.31814556,195.18,195.17,0.03]
[1753125906468,12.44162132,195.18,195.17,0.03]
[1753125908669,7.31814556,195.18,195.17,0.03]
[1753125909300,12.44162132,195.18,195.17,0.03]
[1753125910089,11.73162132,195.18,195.17,0.03]
[1753125910770,5.12242598,195.22,195.17,0.68]
[1753125911109,95.10814556,195.21,195.17,0.68]
[1753125911269,95.10814556,195.21,195.18,0.65]
[1753125911469,88.5,195.21,195.19,0.65]
[1753125911696,6.60814556,195.22,195.19,0.65]
[1753125912104,6.60814556,195.22,195.19,26.65]
[1753125912785,6.60814556,195.21,195.18,26.0]
[1753125912988,6.60814556,195.22,195.19,26.65]
[1753125914077,6.60814556,195.21,195.18,26.0]
[1753125914875,5.83244013,195.22,195.18,26.0]
[1753125914876,11.73135883,195.19,195.18,26.0]
[1753125915076,5.83268838,195.21,195.18,26.0]
[1753125915278,6.60814556,195.2,195.18,26.0]
[1753125915578,6.60814556,195.21,195.18,26.0]
[1753125915791,88.5,195.22,195.18,26.65]
[1753125915980,6.60814556,195.21,195.18,26.65]
[1753125916182,6.60814556,195.2,195.18,26.0]
[1753125917782,95.10814556,195.22,195.19,26.65]
[1753125918379,6.60814556,195.21,195.19,0.65]
[1753125918585,0.06,195.27,195.24,26.0]
[1753125918802,0.06,195.27,195.26,6.60814556]
[1753125919300,0.06,195.27,195.25,39.197]
[1753125919503,0.06,195.27,195.26,7.25814556]
[1753125920411,0.06,195.27,195.26,0.65]
[1753125920617,7.37814556,195.27,195.2,13.4926656]
[1753125920896,6.60814556,195.26,195.23,26.0]
[1753125921099,0.71,195.25,195.24,26.0]
[1753125921402,0.06,195.27,195.24,26.0]
[1753125921403,6.66814556,195.27,195.24,26.0]
[1753125922107,11.78930374,195.27,195.24,26.0]
[1753125922486,12.49930374,195.27,195.24,26.0]
[1753125923304,16.46315662,195.27,195.24,26.0]
[1753125923512,0.06,195.27,195.24,26.65]
[1753125923712,5.18114904,195.27,195.24,26.0]
[1753125923920,5.89114904,195.27,195.24,26.0]
[1753125924297,16.46314748,195.27,195.24,26.0]
[1753125925010,10.63199844,195.27,195.24,26.0]
[1753125927001,0.06,195.27,195.25,0.65]
[1753125928010,11.28199844,195.26,195.24,26.0]
[1753125928187,10.57199844,195.25,195.24,26.0]
[1753125928388,11.28199844,195.25,195.24,26.0]
[1753125928708,11.28199844,195.25,195.19,0.65]
[1753125929005,10.57199844,195.25,195.19,11.22199844]
[1753125929218,10.57199844,195.25,195.22,26.0]
[1753125929806,15.6936497,195.25,195.22,26.0]
[1753125930005,16.4036497,195.25,195.22,26.0]
[1753125930309,10.57199844,195.24,195.22,26.0]
[1753125930484,10.57199844,195.24,195.21,26.0]
[1753125930686,10.57199844,195.23,195.21,26.0]
[1753125930885,11.28199844,195.22,195.17,0.03]
[1753125931107,10.57199844,195.18,195.17,0.03]
[1753125931995,11.26199844,195.18,195.17,0.03]
[1753125932717,10.57199844,195.18,195.17,0.03]
[1753125933295,89.19,195.23,195.17,26.69]
[1753125933495,99.07199844,195.23,195.2,26.0]
[1753125933795,88.5,195.23,195.22,26.0]
[1753125934001,10.57199844,195.25,195.22,26.0]
[1753125934400,0.06,195.27,195.24,10.57199844]
[1753125934749,0.06,195.27,195.26,26.0]
[1753125935017,0.06,195.27,195.26,26.51213766]
[1753125935227,0.06,195.27,195.26,26.66]
[1753125936203,0.06,195.27,195.26,31.78137662]
[1753125936515,0.06,195.27,195.26,42.86551272]
[1753125937229,0.06,195.27,195.26,32.29351428]
[1753125937400,0.06,195.27,195.26,42.35337506]
[1753125937816,0.06,195.27,195.26,79.25337506]
[1753125938197,0.06,195.27,195.26,26.66]
[1753125938400,0.06,195.27,195.25,36.9]
[1753125939327,0.06,195.27,195.26,11.7441361]
[1753125940115,0.06,195.27,195.26,16.86551272]
[1753125941425,0.06,195.27,195.26,35.26959669]
[1753125942424,0.06,195.27,195.26,24.69759825]
[1753125942617,0.06,195.27,195.26,35.26959669]
[1753125943229,0.06,195.27,195.26,18.48491272]
[1753125946505,0.06,195.27,195.26,10.57199844]
[1753125946827,11.32199844,195.27,195.19,11.23199844]
[1753125947017,11.26199844,195.26,195.23,26.0]
[1753125947215,11.26199844,195.25,195.2,36.88]
[1753125947429,0.69,195.25,195.2,36.88]
[1753125947608,0.69,195.25,195.2,48.11199844]
[1753125947805,0.69,195.25,195.23,26.0]
[1753125948216,0.69,195.25,195.23,62.88]
[1753125948624,11.26199844,195.25,195.23,62.88]
[1753125949107,10.57199844,195.24,195.23,62.88]
[1753125950017,10.57199844,195.25,195.23,62.88]
[1753125951107,0.69,195.24,195.23,62.88]
[1753125952631,0.69,195.24,195.18,0.51234757]
[1753125952632,11.26199844,195.24,195.17,0.03]
[1753125952845,10.57199844,195.22,195.18,36.88]
[1753125953032,10.57199844,195.22,195.21,26.0]
[1753125953209,15.69442442,195.22,195.21,26.0]
[1753125953413,10.57199844,195.22,195.21,26.0]
[1753125953613,88.5,195.25,195.21,26.0]
[1753125953817,88.5,195.25,195.22,37.54]
[1753125953818,99.07199844,195.25,195.22,37.54]
[1753125954119,99.07199844,195.25,195.22,36.88]
[1753125954441,10.57199844,195.24,195.22,36.88]
[1753125955830,10.57199844,195.23,195.22,36.88]
[1753125956029,11.26199844,195.23,195.22,36.88]
[1753125957133,7.30078436,195.23,195.22,36.88]
[1753125957852,88.5,195.25,195.22,36.88]
[1753125958143,6.61078436,195.23,195.22,36.88]
[1753125958338,6.61078436,195.23,195.17,0.03]
[1753125958529,6.61078436,195.18,195.17,36.91]
[1753125958847,7.30078436,195.18,195.17,36.91]
[1753125959446,6.61078436,195.19,195.17,62.91]
[1753125959637,6.61078436,195.21,195.17,62.91]
[1753125959941,11.73350844,195.21,195.18,0.66]
[1753125960146,6.61078436,195.19,195.17,26.03]
[1753125960351,7.30078436,195.18,195.17,62.89]
[1753125961248,7.30078436,195.18,195.16,0.03]
[1753125961447,7.27078436,195.17,195.16,0.03]
[1753125961849,12.39452263,195.17,195.16,0.03]
[1753125963047,6.61078436,195.19,195.16,0.03]
[1753125963253,6.61078436,195.19,195.17,36.86]
[1753125963254,10.58077105,195.19,195.17,36.86]
[1753125963465,88.5,195.23,195.17,36.86]
[1753125963466,10.58077105,195.21,195.18,0.69]
[1753125963644,89.16,195.23,195.17,36.86]
[1753125963645,10.58077105,195.22,195.17,36.86]
[1753125963826,89.16,195.23,195.16,0.03]
[1753125963827,5.12373827,195.17,195.16,0.03]
[1753125964027,15.70450932,195.17,195.16,0.03]
[1753125964249,16.36450932,195.17,195.16,0.03]
[1753125964750,15.70450932,195.17,195.16,0.03]
[1753125964938,10.58077105,195.17,195.16,0.03]
[1753125967350,11.24077105,195.17,195.16,0.03]
[1753125967551,10.58077105,195.17,195.16,0.03]
[1753125967866,15.70405064,195.19,195.16,36.89]
[1753125968043,16.36405064,195.19,195.16,36.89]
[1753125968237,10.58077105,195.18,195.16,36.89]
[1753125968963,10.58077105,195.18,195.16,0.03]
[1753125969136,11.24077105,195.18,195.17,26.0]
[1753125970035,15.70424681,195.18,195.17,26.0]
[1753125971061,10.58077105,195.21,195.17,26.69]
[1753125971238,5.12242756,195.22,195.18,37.55]
[1753125971444,15.70319861,195.22,195.18,37.55]
[1753125971948,10.58077105,195.2,195.18,36.86]
[1753125972152,5.78321327,195.19,195.18,36.86]
[1753125972455,16.36398432,195.19,195.17,36.86]
[1753125972752,15.70398432,195.19,195.16,0.03]
[1753125972955,16.36398432,195.19,195.16,0.03]
[1753125973861,5.78321327,195.19,195.16,0.03]
[1753125974055,16.36398432,195.19,195.16,0.03]
[1753125974262,10.58077105,195.18,195.16,0.03]
[1753125974558,5.78321327,195.19,195.16,0.03]
[1753125974759,15.70379488,195.2,195.17,26.0]
[1753125975149,5.12302383,195.2,195.17,62.86]
[1753125976039,11.24077105,195.19,195.17,62.86]
[1753125976242,5.12347576,195.18,195.17,62.86]
[1753125976437,5.1232612,195.19,195.17,62.86]
[1753125976938,5.1832612,195.19,195.17,62.86]
[1753125977347,5.8432612,195.19,195.17,62.86]
[1753125977944,16.42403225,195.19,195.17,62.86]
[1753125979168,5.1832612,195.19,195.17,62.86]
[1753125979554,15.76403225,195.19,195.17,62.86]
[1753125979759,0.66,195.18,195.17,62.86]
[1753125979964,15.76403225,195.19,195.17,62.86]
[1753125980163,0.06,195.19,195.17,62.86]
[1753125981850,11.24077105,195.18,195.16,0.03]
[1753125982169,10.58077105,195.18,195.17,26.0]
[1753125982545,15.70424681,195.18,195.17,26.0]
[1753125984369,5.12347576,195.18,195.17,26.0]
[1753125984670,0.06,195.19,195.17,53.23441069]
[1753125984968,0.06,195.19,195.18,28.05545502]
[1753125985167,0.06,195.19,195.18,24.08167113]
[1753125985669,0.06,195.19,195.18,7.29698716]
[1753125985876,0.06,195.19,195.18,0.69]
[1753125986082,0.06,195.19,195.18,7.29698716]
[1753125986575,0.06,195.19,195.18,12.42046292]
[1753125986746,0.06,195.19,195.18,5.81347576]
[1753125987066,0.06,195.19,195.18,12.42046292]
[1753125987268,0.06,195.19,195.18,11.26423949]
[1753125988074,0.06,195.19,195.18,16.38771525]
[1753125990276,0.06,195.19,195.18,33.17239922]
[1753125990656,0.06,195.19,195.18,37.51]
[1753125990863,0.06,195.19,195.18,53.20771525]
[1753125992158,0.06,195.19,195.18,37.51]
[1753125992475,11.30423949,195.19,195.16,0.03]
[1753125992655,10.57423949,195.17,195.16,0.03]
[1753125993168,11.24423949,195.17,195.16,26.03]
[1753125993362,11.24423949,195.17,195.16,0.03]
[1753125993568,0.06,195.19,195.16,0.03]
[1753125993772,0.06,195.19,195.17,36.8]
[1753125994076,15.7576771,195.19,195.17,36.8]
[1753125994285,16.4276771,195.19,195.17,36.8]
[1753125994657,5.18343761,195.19,195.17,36.8]
[1753125994862,0.06,195.19,195.17,36.8]
[1753125995065,0.06,195.19,195.18,0.68]
[1753125995257,0.06,195.19,195.18,11.25423949]
[1753125995768,0.06,195.19,195.18,0.68]
[1753125996283,0.06,195.19,195.17,36.8]
[1753125998482,0.06,195.19,195.17,36.83]
[1753126000183,0.06,195.19,195.17,62.83]
[1753126001877,0.06,195.19,195.17,0.03]
[1753126001878,11.24423949,195.18,195.17,0.03]
[1753126002077,104.86771525,195.18,195.17,0.03]
[1753126006069,104.86771525,195.18,195.16,0.03]
[1753126006372,153.32892346,195.17,195.16,1e-08]
[1753126006999,136.52423949,195.17,195.16,1e-08]
[1753126008296,141.64797776,195.17,195.16,1e-08]
[1753126009173,100.23819998,195.17,195.16,1e-08]
[1753126009597,100.90819998,195.17,195.16,1e-08]
[1753126010277,154.47288395,195.17,195.16,1e-08]
[1753126010479,6.61446171,195.14,195.13,0.03]
[1753126010691,43.39446171,195.14,195.13,0.03]
[1753126010889,44.06446171,195.14,195.13,0.03]
[1753126012392,49.18898769,195.14,195.13,0.03]
[1753126012905,48.51898769,195.14,195.13,0.03]
[1753126013079,11.73898769,195.14,195.13,0.03]
[1753126013497,11.73880188,195.15,195.13,0.03]
[1753126013697,88.5,195.16,195.13,0.71]
[1753126014390,88.5,195.16,195.14,0.68]
[1753126014589,93.62402498,195.16,195.14,0.68]
[1753126015183,104.87709899,195.16,195.13,0.03]
[1753126015378,10.58307401,195.15,195.13,0.03]
[1753126015790,104.87709899,195.16,195.13,0.03]
[1753126017293,5.12452598,195.14,195.13,0.03]
[1753126017689,16.37759999,195.14,195.13,0.03]
[1753126019184,5.12452598,195.14,195.13,0.03]
[1753126020386,5.12428421,195.15,195.13,0.03]
[1753126020601,41.90428421,195.15,195.13,0.03]
[1753126020788,10.58307401,195.14,195.13,0.03]
[1753126022293,53.15735822,195.15,195.13,0.03]
[1753126022494,0.06,195.17,195.14,0.67]
[1753126022704,0.06,195.17,195.15,0.67]
[1753126023018,0.06,195.17,195.16,47.36307401]
[1753126023185,0.06,195.19,195.18,27.36775798]
[1753126023504,0.06,195.19,195.18,27.88010555]
[1753126023701,0.00631512,195.19,195.18,27.88010555]
[1753126023906,0.00631512,195.19,195.18,28.55010555]
[1753126025092,0.00631512,195.19,195.18,33.67358131]
[1753126025686,0.00631512,195.19,195.18,26.0]
[1753126026506,0.00631512,195.19,195.16,36.76]
[1753126026902,0.00631512,195.19,195.17,37.25307401]
[1753126027508,0.00631512,195.19,195.18,0.67]
[1753126027710,0.00631512,195.19,195.17,26.67]
[1753126028293,0.00631512,195.19,195.17,26.0]
[1753126028591,0.00631512,195.19,195.18,11.25307401]
[1753126029594,0.00631512,195.19,195.14,2.76595259]
[1753126029912,0.00631512,195.19,195.15,73.34307401]
[1753126030116,0.00631512,195.19,195.15,62.76]
[1753126030117,0.69631512,195.19,195.15,62.76]
[1753126030296,0.00631512,195.19,195.18,26.0]
[1753126030598,0.00631512,195.19,195.18,36.58307401]
[1753126030915,0.00631512,195.19,195.18,37.25307401]
[1753126031805,0.00631512,195.19,195.18,26.67]
[1753126032009,0.00631512,195.19,195.18,37.25307401]
[1753126033116,0.00631512,195.19,195.18,33.67358131]
[1753126033914,0.06,195.21,195.2,26.0]
[1753126034096,0.06,195.21,195.2,73.32307401]
[1753126034501,0.06,195.21,195.2,73.99307401]
[1753126035103,0.06,195.21,195.2,62.74]
[1753126036318,0.06,195.21,195.2,26.0]
[1753126038520,0.06,195.21,195.2,40.30350387]
[1753126039015,0.06,195.23,195.22,10.58307401]
[1753126039198,0.06,195.23,195.22,47.8353166]
[1753126039400,0.06,195.23,195.22,65.29000057]
[1753126040426,0.06,195.23,195.22,70.41242655]
[1753126043807,0.06,195.23,195.22,23.08935254]
[1753126043994,0.06,195.23,195.22,70.39242655]
[1753126044334,0.06,195.23,195.2,8.64949508]
[1753126044502,0.06,195.23,195.21,47.30307401]
[1753126044824,0.69,195.22,195.19,0.03]
[1753126045008,0.06,195.23,195.19,36.75]
[1753126045213,0.69,195.21,195.19,36.75]
[1753126045416,0.69,195.21,195.19,0.03]
[1753126045417,0.69,195.2,195.19,0.03]
[1753126045602,11.27307401,195.2,195.19,0.03]
[1753126046105,10.58307401,195.2,195.19,0.03]
[1753126046303,11.27307401,195.2,195.19,0.03]
[1753126046622,16.39602482,195.2,195.19,0.03]
[1753126048815,16.39602482,195.2,195.19,1e-08]
[1753126049505,33.18070879,195.2,195.19,1e-08]
[1753126050618,69.90070879,195.2,195.19,1e-08]
[1753126051129,53.11602482,195.2,195.19,1e-08]
[1753126052704,69.90070879,195.2,195.19,1e-08]
[1753126053105,69.90070879,195.2,195.15,0.03]
[1753126053106,82.70808583,195.2,195.15,1e-08]
[1753126053314,10.58307401,195.16,195.15,1e-08]
[1753126053612,64.08775798,195.16,195.15,1e-08]
[1753126053811,64.76775798,195.16,195.15,1e-08]
[1753126055024,69.89175879,195.16,195.15,1e-08]
[1753126059111,26.0,195.14,195.13,1e-08]
[1753126059313,16.78468397,195.13,195.12,1e-08]
[1753126059522,75.35083199,195.13,195.12,1e-08]
[1753126059725,64.76775798,195.13,195.12,1e-08]
[1753126060119,69.89254658,195.13,195.12,1e-08]
[1753126060321,80.47562059,195.13,195.12,1e-08]
[1753126060727,10.58307401,195.1,195.06,0.03]
[1753126060912,16.78468397,195.09,195.06,0.03]
[1753126061115,10.58307401,195.07,195.06,0.03]
[1753126061319,47.30307401,195.07,195.02,0.03]
[1753126061517,11.26307401,195.06,195.02,0.03]
[1753126061932,0.68,195.06,195.02,0.03]
[1753126062138,53.10970171,195.06,195.02,0.03]
[1753126062341,16.78468397,195.05,195.04,0.03]
[1753126062547,28.04775798,195.05,195.04,0.03]
[1753126063027,28.04775798,195.05,195.02,0.03]
[1753126063334,10.58307401,195.03,195.02,1e-08]
[1753126063725,11.26307401,195.03,195.02,1e-08]
[1753126063936,11.26307401,195.03,195.01,1e-08]
[1753126064123,69.89543719,195.02,195.01,1e-08]
[1753126065220,82.71463522,195.02,194.98,0.2]
[1753126065421,82.71463522,195.02,194.98,1e-08]
[1753126065422,10.58307401,194.99,194.98,1e-08]
[1753126065628,47.30307401,194.99,194.98,1e-08]
[1753126066122,52.43154213,194.99,194.98,1e-08]
[1753126066322,53.11154213,194.99,194.98,1e-08]
[1753126067943,69.8962261,194.99,194.98,1e-08]
[1753126068630,217.6962261,194.99,194.98,1e-08]
[1753126071363,105.28468397,194.97,194.96,1e-08]
[1753126071519,64.08775798,194.97,194.96,1e-08]
[1753126071721,64.76775798,194.97,194.96,1e-08]
[1753126072448,69.89675218,194.97,194.96,1e-08]
[1753126072947,16.78468397,194.96,194.94,1e-08]
[1753126073245,64.10775798,194.95,194.94,1e-08]
[1753126073550,64.78775798,194.95,194.94,1e-08]
[1753126074433,69.91727836,194.95,194.94,1e-08]
[1753126075239,69.91727836,194.95,194.92,0.2]
[1753126075240,16.78468397,194.94,194.92,1e-08]
[1753126075459,64.10775798,194.93,194.92,1e-08]
[1753126075929,5.12952038,194.95,194.92,1e-08]
[1753126076130,10.58307401,194.93,194.92,1e-08]
[1753126076332,15.71312069,194.93,194.92,1e-08]
[1753126077140,5.13004668,194.93,194.92,1e-08]
[1753126077326,52.45292549,194.94,194.92,0.69000001]
[1753126077523,52.45292549,194.94,194.92,1e-08]
[1753126077730,10.58307401,194.93,194.92,1e-08]
[1753126078137,11.26307401,194.93,194.92,1e-08]
[1753126078537,33.17780466,194.93,194.92,1e-08]
[1753126080054,5.13004668,194.93,194.92,1e-08]
[1753126080259,15.71259439,194.95,194.92,0.69000001]
[1753126080561,5.13004668,194.93,194.92,0.69000001]
[1753126081239,5.13004668,194.93,194.92,1e-08]
[1753126081747,5.13004668,194.93,194.92,0.66000001]
[1753126081944,5.13004668,194.93,194.92,1e-08]
[1753126082556,15.71312069,194.93,194.92,1e-08]
[1753126083058,5.13004668,194.93,194.92,1e-08]
[1753126084753,15.71312069,194.93,194.92,1e-08]
[1753126085153,11.76114354,194.93,194.92,1e-08]
[1753126085441,12.48114354,194.93,194.92,1e-08]
[1753126086260,29.26582751,194.93,194.92,1e-08]
[1753126089465,66.00582751,194.93,194.92,1e-08]
[1753126090367,16.78468397,194.92,194.84,0.03]
[1753126090557,6.63109686,194.85,194.84,0.03]
[1753126090759,43.37109686,194.85,194.84,0.03]
[1753126090958,43.37109686,194.85,194.8,6.0657]
[1753126091164,6.63109686,194.83,194.8,6.0657]
[1753126091352,5.13294322,194.82,194.8,6.0657]
[1753126091855,5.13294322,194.82,194.81,0.66]
[1753126092251,5.13294322,194.82,194.78,26.66]
[1753126092465,36.74,194.81,194.79,0.66]
[1753126092645,36.74,194.81,194.8,0.66]
[1753126092972,36.74,194.81,194.8,26.66]
[1753126093700,41.87320671,194.81,194.8,26.66]
[1753126094564,48.50430357,194.81,194.77,2.2047]
[1753126094763,48.50430357,194.81,194.72,0.1]
[1753126094764,6.63109686,194.78,194.72,1.6214]
[1753126094949,36.74,194.77,194.73,0.66]
[1753126095284,36.74,194.78,194.73,26.66]
[1753126095453,36.74,194.78,194.74,0.66]
[1753126095650,5.13426092,194.77,194.72,2.2814]
[1753126095873,44.09109686,194.76,194.72,1.6214]
[1753126096056,0.72,194.75,194.72,0.1]
[1753126096255,36.74,194.74,194.72,0.1]
[1753126096565,36.74,194.73,194.72,0.1]
[1753126096954,5.13426092,194.77,194.72,6.73109686]
[1753126097154,36.74,194.81,194.76,26.0]
[1753126097358,36.74,194.81,194.77,0.66]
[1753126097558,43.37109686,194.81,194.77,0.66]
[1753126097749,6.63109686,194.78,194.72,26.1]
[1753126097970,6.63109686,194.73,194.72,0.1]
[1753126098176,43.37109686,194.73,194.72,0.1]
[1753126098356,60.87578083,194.73,194.72,0.1]
[1753126098750,16.78468397,194.72,194.66,0.66]
[1753126098959,6.63109686,194.67,194.63,1.5137]
[1753126099178,6.63109686,194.65,194.63,1.5137]
[1753126099387,6.63109686,194.7,194.63,1.5137]
[1753126099388,36.74,194.64,194.63,27.5137]
[1753126099553,43.37109686,194.67,194.63,27.5137]
[1753126099748,43.37109686,194.67,194.58,6.141]
[1753126099749,6.63109686,194.65,194.58,6.141]
[1753126099977,5.13713002,194.67,194.61,6.63109686]
[1753126100184,5.13713002,194.67,194.59,0.66]
[1753126100185,36.74,194.66,194.62,0.66]
[1753126100486,48.50742224,194.7,194.64,6.63109686]
[1753126100651,36.74,194.7,194.67,6.63109686]
[1753126100976,36.74,194.74,194.69,32.63109686]
[1753126101159,36.74,194.74,194.71,10.62790315]
[1753126101473,12.93138435,194.79,194.73,36.62790315]
[1753126101474,36.74,194.76,194.73,36.62790315]
[1753126101774,36.76,194.77,194.74,0.66]
[1753126101966,10.62790315,194.75,194.7,26.0]
[1753126102161,0.72,194.75,194.7,37.28790315]
[1753126102471,36.76,194.74,194.71,26.0]
[1753126102671,47.38790315,194.74,194.71,26.0]
[1753126103065,36.76,194.74,194.71,26.0]
[1753126103270,36.76,194.74,194.72,26.66]
[1753126103680,5.13531556,194.73,194.72,26.0]
[1753126103969,16.48321871,194.73,194.72,26.0]
[1753126104172,16.48321871,194.73,194.67,6.1494]
[1753126104360,16.48321871,194.73,194.7,26.0]
[1753126104563,15.76321871,194.73,194.7,26.0]
[1753126104877,5.13531556,194.73,194.7,26.0]
[1753126105076,36.76,194.74,194.71,0.66]
[1753126105460,0.72,194.76,194.72,37.28790315]
[1753126105462,36.76,194.76,194.72,37.28790315]
[1753126105657,36.76,194.76,194.73,0.66]
[1753126105877,36.76,194.76,194.74,0.66]
[1753126106271,36.78,194.78,194.75,0.66]
[1753126106474,10.62790315,194.78,194.74,26.0]
[1753126106660,10.62790315,194.77,194.74,26.0]
[1753126106863,0.72,194.76,194.74,26.0]
[1753126107173,11.34790315,194.76,194.71,26.66]
[1753126107551,36.8,194.77,194.73,26.0]
[1753126107772,41.93434379,194.77,194.72,36.62790315]
[1753126107952,41.93434379,194.77,194.73,0.66]
[1753126108165,52.56224694,194.77,194.73,0.66]
[1753126108361,52.56224694,194.77,194.71,10.62790315]
[1753126108362,53.28224694,194.77,194.71,37.28790315]
[1753126108581,53.28224694,194.77,194.71,36.62790315]
[1753126108955,41.93434379,194.77,194.72,11.28790315]
[1753126109155,41.93434379,194.77,194.73,0.66]
[1753126109561,36.8,194.77,194.74,0.66]
[1753126109760,41.93428372,194.77,194.73,10.62790315]
[1753126109964,41.93428372,194.77,194.72,0.66]
[1753126110577,41.93428372,194.77,194.73,0.66]
[1753126110895,36.8,194.77,194.74,0.66]
[1753126111055,41.93428266,194.77,194.74,0.66]
[1753126112478,41.93428266,194.77,194.73,26.0]
[1753126112868,36.8,194.77,194.74,0.67]
[1753126113064,41.93426105,194.77,194.74,0.67]
[1753126113575,44.5501609,194.77,194.74,0.67]
[1753126114071,44.5501609,194.77,194.73,10.62790315]
[1753126114072,39.41589985,194.77,194.73,10.62790315]
[1753126114273,36.8,194.77,194.75,0.67]
[1753126114786,5.13411245,194.78,194.75,0.67]
[1753126114960,36.91641647,194.79,194.76,0.67]
[1753126115163,11.31790315,194.78,194.75,26.0]
[1753126115481,0.69,194.77,194.75,26.0]
[1753126115785,2.53519735,194.78,194.76,26.0]
[1753126115786,0.69,194.78,194.76,26.0]
[1753126116279,0.69,194.78,194.71,0.67]
[1753126116280,5.82426092,194.77,194.72,36.62790315]
[1753126116581,5.13426092,194.77,194.73,0.67]
[1753126117383,5.13426092,194.77,194.74,0.67]
[1753126117582,5.13426092,194.77,194.72,26.0]
[1753126117583,48.23790315,194.76,194.72,26.0]
[1753126117753,10.62790315,194.74,194.68,0.67]
[1753126117955,11.31790315,194.74,194.7,26.0]
[1753126118183,5.13557929,194.72,194.68,0.67]
[1753126118570,5.13557929,194.72,194.7,26.0]
[1753126119075,5.82557929,194.72,194.7,26.0]
[1753126119663,5.13557929,194.72,194.7,26.0]
[1753126119859,0.69,194.71,194.7,26.0]
[1753126120073,0.69,194.71,194.66,1.6959]
[1753126120282,5.13610683,194.7,194.69,26.0]
[1753126120957,16.45400998,194.7,194.66,1.6959]
[1753126121165,10.62790315,194.68,194.66,0.03]
[1753126121566,11.31790315,194.67,194.66,0.03]
[1753126121976,0.69,194.67,194.66,0.03]
[1753126122284,5.82689834,194.67,194.66,0.03]
[1753126122478,53.41480149,194.67,194.66,0.03]
[1753126122883,101.3379256,194.74,194.66,0.03]
[1753126123088,10.62790315,194.71,194.66,0.7]
[1753126123386,11.31790315,194.71,194.66,0.7]
[1753126124767,16.45386607,194.71,194.66,0.7]
[1753126124968,10.62790315,194.69,194.66,26.03]
[1753126125182,0.69,194.69,194.66,26.03]
[1753126125381,10.62790315,194.69,194.66,0.03]
[1753126125583,10.62790315,194.67,194.66,0.03]
[1753126125763,11.31790315,194.68,194.66,0.03]
[1753126125968,10.62790315,194.68,194.66,0.03]
[1753126126270,36.94,194.7,194.66,0.03]
[1753126126271,0.69,194.67,194.66,0.03]
[1753126126461,48.27790315,194.67,194.66,0.03]
[1753126126860,53.41480149,194.67,194.66,0.03]
[1753126127571,42.78689834,194.67,194.66,0.03]
[1753126127779,53.41480149,194.67,194.66,0.03]
[1753126129382,70.19948546,194.67,194.66,0.03]
[1753126129895,70.19948546,194.67,194.66,1e-08]
[1753126130881,70.31948546,194.67,194.66,1e-08]
[1753126131299,96.31948546,194.67,194.66,1e-08]
[1753126131609,42.78468397,194.64,194.49,0.67]
[1753126131766,10.62790315,194.53,194.49,0.67]
[1753126131965,37.08,194.52,194.46,7.7977]
[1753126132164,10.62790315,194.5,194.46,7.7977]
[1753126132464,16.78468397,194.55,194.46,7.7977]
[1753126132465,37.14,194.49,194.47,0.67]
[1753126132803,16.78468397,194.55,194.48,0.67]